[Event "3rd Memorial Warakomska 2019"]
[Site "Suwalki"]
[Date "2019.08.07"]
[Round "3.43"]
[White "Kokoszczynski, Jan"]
[Black "Checiak, Krzysztof"]
[Result "1-0"]
[ECO "E18"]
[WhiteElo "2238"]
[BlackElo "2057"]
[Annotator "NA"]
[PlyCount "105"]
[EventDate "2019.08.05"]
[EventType "swiss"]
[EventCountry "POL"]
[SourceTitle "playchess.com"]
[Source "ChessBase"]
[SourceQuality "1"]
[TimeControl "40/5400+30:1800+30"]

1. d4 {[%emt 0:00:00]} Nf6 {[%emt 0:01:57]} 2. c4 {[%emt 0:00:00]} e6 {[%emt 0:00:15]} 3. Nf3 {[%emt 0:00:04]} b6 {[%emt 0:00:45]} 4. g3 {[%emt 0:00:15]} Bb7 {[%emt 0:00:08]} 5. Bg2 {[%emt 0:00:16]} Be7 {[%emt 0:01:58]} 6. O-O {[%emt 0:00:22]} O-O {[%emt 0:00:19]} 7. Nc3 {[%emt 0:02:32]} d5 {[%emt 0:00:44]} 8. cxd5 {[%emt 0:05:28]} Nxd5 {[%emt 0:02:27]} 9. Qc2 {[%emt 0:05:22]} Na6 {[%emt 0:01:39]} 10. e4 {[%emt 0:05:11]} Nxc3 {[%emt 0:00:18]} 11. bxc3 {[%emt 0:00:12]} c5 {[%emt 0:00:37]} 12. a3 {[%emt 0:01:19]} Qc8 {[%emt 0:00:44]} 13. Qe2 {[%emt 0:02:07]} Re8 {[%emt 0:01:44]} 14. Rd1 {[%emt 0:03:20]} Nc7 {[%emt 0:01:15]} 15. Bb2 {[%emt 0:00:23]} Ba6 {[%emt 0:04:24]} 16. Qe3 {[%emt 0:03:52]} Nb5 {[%emt 0:00:50]} 17. Nd2 {[%emt 0:10:18]} Rb8 {[%emt 0:02:10]} 18. a4 {[%emt 0:08:06]} Nd6 {[%emt 0:00:48]} 19. e5 {[%emt 0:12:35]} Nc4 {[%emt 0:02:06]} 20. Nxc4 {[%emt 0:00:17]} Bxc4 {[%emt 0:00:06]} 21. d5 {[%emt 0:02:46]} exd5 {[%emt 0:00:52]} 22. Bxd5 {[%emt 0:00:42]} Bxd5 {[%emt 0:02:12]} 23. Rxd5 {[%emt 0:00:08]} c4 {[%emt 0:00:31]} 24. Rad1 {[%emt 0:12:35]} Rb7 {[%emt 0:01:02]} 25. Qe4 {[%emt 0:03:32]} h6 {[%emt 0:03:32]} 26. Bc1 {[%emt 0:01:31]} Qc6 {[%emt 0:02:28]} 27. Qg4 {[%emt 0:08:11]} Kh8 {[%emt 0:00:18]} 28. Qh5 {[%emt 0:07:33]} Bf8 {[%emt 0:00:39]} 29. Be3 {[%emt 0:04:40]} Qxa4 {[%emt 0:02:59]} 30. Qf5 {[%emt 0:00:43]} Qc6 {[%emt 0:00:56]} 31. R1d4 {[%emt 0:00:17]} Bc5 {[%emt 0:01:41]} 32. Rd6 {[%emt 0:00:40]} Bxd6 {[%emt 0:05:56]} 33. Rxd6 {[%emt 0:00:08]} Qb5 {[%emt 0:01:50]} 34. Bd4 {[%emt 0:00:50]} Kg8 {[%emt 0:02:28]} 35. Qg4 {[%emt 0:00:32]} Qb1+ {[%emt 0:00:52]} 36. Kg2 {[%emt 0:00:01]} Qh7 {[%emt 0:05:12]} 37. h4 {[%emt 0:00:59]} Rbe7 {[%emt 0:01:21]} 38. Kh2 {[%emt 0:00:24]} Re6 {[%emt 0:02:38]} 39. Rd7 {[%emt 0:00:01]} a6 {[%emt 0:00:43]} 40. Qf3 {[%emt 0:00:00]} Qg6 {[%emt 0:00:00]} 41. h5 {[%emt 0:01:53]} Qg5 {[%emt 0:01:08]} 42. Qxf7+ {[%emt 0:10:12]} Kh7 {[%emt 0:00:17]} 43. f4 {[%emt 0:06:22]} Qg4 {[%emt 0:00:30]} 44. f5 {[%emt 0:00:28]} Qe2+ {[%emt 0:06:46]} 45. Kg1 {[%emt 0:01:31]} Qe1+ {[%emt 0:00:46]} 46. Kg2 {[%emt 0:00:34]} Qe4+ {[%emt 0:01:41]} 47. Kf2 {[%emt 0:00:25]} Qc2+ {[%emt 0:00:34]} 48. Kg1 {[%emt 0:00:38]} Qd1+ {[%emt 0:00:38]} 49. Kg2 {[%emt 0:00:47]} Qe2+ {[%emt 0:00:16]} 50. Bf2 {[%emt 0:01:03]} Qe4+ {[%emt 0:01:06]} 51. Kh2 {[%emt 0:00:29]} Qxe5 {[%emt 0:01:08]} 52. fxe6 {[%emt 0:00:07]} Rxe6 {[%emt 0:00:19]} 53. Rd8 {[%emt 0:00:54]} 1-0

[Event "3rd Memorial Warakomska 2019"]
[Site "Suwalki"]
[Date "2019.08.07"]
[Round "3.44"]
[White "Advait, Bagri"]
[Black "Sanz Wawer, Daniel"]
[Result "0-1"]
[ECO "B18"]
[WhiteElo "1968"]
[BlackElo "2154"]
[Annotator "ChessBase"]
[PlyCount "90"]
[EventDate "2019.08.05"]
[EventType "swiss"]
[EventCountry "POL"]
[SourceTitle "playchess.com"]
[Source "ChessBase"]
[SourceQuality "1"]
[TimeControl "40/5400+30:1800+30"]

1. e4 {[%emt 0:00:00]} c6 {[%emt 0:00:00]} 2. d4 {[%emt 0:00:00]} d5 {[%emt 0:00:00]} 3. Nc3 {[%emt 0:00:09]} dxe4 {[%emt 0:00:00]} 4. Nxe4 {[%emt 0:00:17]} Bf5 {[%emt 0:00:04]} 5. Ng3 {[%emt 0:00:08]} Bg6 {[%emt 0:00:06]} 6. h4 {[%emt 0:00:14]} h6 {[%emt 0:00:07]} 7. Nf3 {[%emt 0:00:10]} e6 {[%emt 0:00:11]} 8. h5 {[%emt 0:02:02]} Bh7 {[%emt 0:00:06]} 9. Bd3 {[%emt 0:00:11]} Bxd3 {[%emt 0:00:08]} 10. Qxd3 {[%emt 0:00:10]} Nf6 {[%emt 0:00:18]} 11. Bd2 {[%emt 0:00:12]} c5 {[%emt 0:01:45]} 12. O-O-O {[%emt 0:03:10]} Nc6 {[%emt 0:00:08]} 13. Qb5 {[%emt 0:07:57]} Qb6 {[%emt 0:01:21]} 14. Qa4 {[%emt 0:08:47]} O-O-O {[%emt 0:07:17]} 15. Ne5 {[%emt 0:01:59]} Rxd4 {[%emt 0:04:51]} 16. Nc4 {[%emt 0:00:08]} Qa6 {[%emt 0:06:06]} 17. Qxa6 {[%emt 0:00:30]} bxa6 {[%emt 0:00:06]} 18. b3 {[%emt 0:01:05]} Be7 {[%emt 0:05:37]} 19. Bc3 {[%emt 0:02:03]} Rxd1+ {[%emt 0:01:21]} 20. Rxd1 {[%emt 0:00:15]} Rd8 {[%emt 0:00:22]} 21. Ne5 {[%emt 0:11:34]} Rxd1+ {[%emt 0:03:54]} 22. Kxd1 {[%emt 0:00:11]} Nxe5 {[%emt 0:00:09]} 23. Bxe5 {[%emt 0:00:12]} Ne8 {[%emt 0:02:33]} 24. c4 {[%emt 0:08:28]} Bd6 {[%emt 0:04:19]} 25. f4 {[%emt 0:10:24]} f6 {[%emt 0:07:54]} 26. Bxd6 {[%emt 0:00:12]} Nxd6 {[%emt 0:00:05]} 27. Kd2 {[%emt 0:00:54]} Kd7 {[%emt 0:00:54]} 28. Kd3 {[%emt 0:03:04]} f5 {[%emt 0:02:40]} 29. a3 {[%emt 0:02:17]} a5 {[%emt 0:02:48]} 30. Kc3 {[%emt 0:04:52]} Ke7 {[%emt 0:03:05]} 31. b4 {[%emt 0:04:16]} axb4+ {[%emt 0:00:25]} 32. axb4 {[%emt 0:00:12]} Ne4+ {[%emt 0:01:00]} 33. Nxe4 {[%emt 0:00:13]} cxb4+ {[%emt 0:00:17]} 34. Kd4 {[%emt 0:00:55]} fxe4 {[%emt 0:00:11]} 35. Kxe4 {[%emt 0:00:06]} b3 {[%emt 0:02:17]} 36. Kd3 {[%emt 0:00:08]} a5 {[%emt 0:00:06]} 37. Kc3 {[%emt 0:00:33]} a4 {[%emt 0:00:10]} 38. Kb2 {[%emt 0:04:29]} Kd6 {[%emt 0:00:06]} 39. Kc3 {[%emt 0:00:08]} Kc5 {[%emt 0:00:25]} 40. g3 {[%emt 0:00:00]} Kc6 {[%emt 0:00:00]} 41. g4 {[%emt 0:03:58]} Kc5 {[%emt 0:00:50]} 42. f5 {[%emt 0:00:44]} exf5 {[%emt 0:00:24]} 43. gxf5 {[%emt 0:00:08]} Kc6 {[%emt 0:00:16]} 44. Kb2 {[%emt 0:00:11]} Kd6 {[%emt 0:00:07]} 45. Kc3 {[%emt 0:00:23]} Kc5 {[%emt 0:00:07] Kd4+} 0-1

[Event "3rd Memorial Warakomska 2019"]
[Site "Suwalki"]
[Date "2019.08.07"]
[Round "3.45"]
[White "Oborski, Artur"]
[Black "Kumala, Aleksander"]
[Result "1/2-1/2"]
[ECO "A40"]
[WhiteElo "1969"]
[BlackElo "2184"]
[Annotator "NA"]
[PlyCount "110"]
[EventDate "2019.08.05"]
[EventType "swiss"]
[EventCountry "POL"]
[SourceTitle "playchess.com"]
[Source "ChessBase"]
[SourceQuality "1"]
[TimeControl "40/5400+30:1800+30"]

1. d4 {[%emt 0:00:00]} e6 {[%emt 0:02:25]} 2. c4 {[%emt 0:00:00]} b6 {[%emt 0:00:03]} 3. a3 {[%emt 0:01:22]} Bb7 {[%emt 0:00:12]} 4. Nc3 {[%emt 0:00:06]} f5 {[%emt 0:00:23]} 5. Nf3 {[%emt 0:03:03]} Nf6 {[%emt 0:00:20]} 6. g3 {[%emt 0:03:10]} Be7 {[%emt 0:00:27]} 7. Bg2 {[%emt 0:00:07]} Ne4 {[%emt 0:00:54]} 8. Bd2 {[%emt 0:03:52]} Nxd2 {[%emt 0:04:51]} 9. Qxd2 {[%emt 0:00:08]} O-O {[%emt 0:02:47]} 10. d5 {[%emt 0:03:10]} a5 {[%emt 0:01:10]} 11. O-O {[%emt 0:00:48]} Na6 {[%emt 0:00:25]} 12. Rad1 {[%emt 0:04:14]} Qe8 {[%emt 0:06:58]} 13. Nd4 {[%emt 0:13:59]} e5 {[%emt 0:04:56]} 14. d6 {[%emt 0:01:43]} Bxg2 {[%emt 0:00:15]} 15. dxe7 {[%emt 0:00:13]} Qxe7 {[%emt 0:00:13]} 16. Nxf5 {[%emt 0:06:49]} Rxf5 {[%emt 0:00:07]} 17. Kxg2 {[%emt 0:00:04]} Rd8 {[%emt 0:02:59]} 18. Qd5+ {[%emt 0:01:22]} Qf7 {[%emt 0:00:22]} 19. Qb7 {[%emt 0:09:32]} Qxc4 {[%emt 0:01:42]} 20. Rxd7 {[%emt 0:00:13]} Rxd7 {[%emt 0:02:01]} 21. Qc8+ {[%emt 0:00:13]} Rf8 {[%emt 0:00:11]} 22. Qxd7 {[%emt 0:00:06]} Qf7 {[%emt 0:05:38]} 23. Qxf7+ {[%emt 0:07:20]} Kxf7 {[%emt 0:00:06]} 24. Ne4 {[%emt 0:03:06]} h6 {[%emt 0:02:17]} 25. Kf3 {[%emt 0:03:27]} Ke6+ {[%emt 0:00:44]} 26. Ke3 {[%emt 0:00:07]} Nc5 {[%emt 0:07:36]} 27. Nxc5+ {[%emt 0:03:45]} bxc5 {[%emt 0:01:34]} 28. Rd1 {[%emt 0:00:16]} Rb8 {[%emt 0:00:19]} 29. Rd2 {[%emt 0:00:07]} c4 {[%emt 0:06:23]} 30. Ke4 {[%emt 0:01:09]} a4 {[%emt 0:10:41]} 31. Rc2 {[%emt 0:02:36]} c3 {[%emt 0:02:11]} 32. Rxc3 {[%emt 0:00:28]} Rxb2 {[%emt 0:00:08]} 33. e3 {[%emt 0:00:22]} Kd6 {[%emt 0:04:03]} 34. f4 {[%emt 0:02:06]} exf4 {[%emt 0:00:14]} 35. gxf4 {[%emt 0:00:07]} g6 {[%emt 0:03:41]} 36. Rc4 {[%emt 0:01:13]} Rxh2 {[%emt 0:00:16]} 37. Rxa4 {[%emt 0:00:05]} h5 {[%emt 0:00:35]} 38. Ra5 {[%emt 0:01:44]} Rg2 {[%emt 0:01:20]} 39. Rd5+ {[%emt 0:03:19]} Ke6 {[%emt 0:00:26]} 40. a4 {[%emt 0:00:00]} Ra2 {[%emt 0:00:00]} 41. Re5+ {[%emt 0:03:51]} Kf6 {[%emt 0:02:43]} 42. a5 {[%emt 0:01:01]} h4 {[%emt 0:05:00]} 43. Rc5 {[%emt 0:00:56]} h3 {[%emt 0:00:29]} 44. Rc6+ {[%emt 0:00:54]} Kf7 {[%emt 0:01:53]} 45. Rxc7+ {[%emt 0:00:25]} Kg8 {[%emt 0:01:30]} 46. Rc1 {[%emt 0:02:21]} Rxa5 {[%emt 0:00:26]} 47. Rh1 {[%emt 0:00:07]} Rh5 {[%emt 0:00:21]} 48. Kf3 {[%emt 0:00:04]} Kf7 {[%emt 0:01:40]} 49. Kg3 {[%emt 0:00:07]} Kf6 {[%emt 0:00:12]} 50. e4 {[%emt 0:00:40]} g5 {[%emt 0:00:36]} 51. fxg5+ {[%emt 0:01:16]} Rxg5+ {[%emt 0:00:41]} 52. Kxh3 {[%emt 0:00:32]} Rh5+ {[%emt 0:00:05]} 53. Kg2 {[%emt 0:00:05]} Rxh1 {[%emt 0:00:04]} 54. Kxh1 {[%emt 0:00:04]} Ke5 {[%emt 0:00:03]} 55. Kg2 {[%emt 0:00:05]} Kxe4 {[%emt 0:00:03]} 1/2-1/2

[Event "3rd Memorial Warakomska 2019"]
[Site "Suwalki"]
[Date "2019.08.07"]
[Round "3.46"]
[White "Korbal, Arkadiusz"]
[Black "Czarniecka, Aleksandra"]
[Result "1/2-1/2"]
[ECO "A41"]
[WhiteElo "2178"]
[BlackElo "2042"]
[Annotator "NA"]
[PlyCount "106"]
[EventDate "2019.08.05"]
[EventType "swiss"]
[EventCountry "POL"]
[SourceTitle "playchess.com"]
[Source "ChessBase"]
[SourceQuality "1"]
[TimeControl "40/5400+30:1800+30"]

1. d4 {[%emt 0:00:00]} d6 {[%emt 0:00:01]} 2. c4 {[%emt 0:00:00]} e5 {[%emt 0:01:31]} 3. Nf3 {[%emt 0:00:00]} e4 {[%emt 0:00:52]} 4. Ng5 {[%emt 0:00:18]} f5 {[%emt 0:00:42]} 5. g3 {[%emt 0:00:55]} Nf6 {[%emt 0:04:39]} 6. Bg2 {[%emt 0:00:47]} Be7 {[%emt 0:03:15]} 7. O-O {[%emt 0:00:22]} O-O {[%emt 0:01:48]} 8. Nc3 {[%emt 0:00:22]} c6 {[%emt 0:05:08]} 9. d5 {[%emt 0:04:32]} h6 {[%emt 0:03:23]} 10. Nh3 {[%emt 0:01:07]} Nbd7 {[%emt 0:02:01]} 11. f3 {[%emt 0:10:20]} exf3 {[%emt 0:11:15]} 12. exf3 {[%emt 0:02:26]} Ne5 {[%emt 0:04:19]} 13. b3 {[%emt 0:04:11]} Qb6+ {[%emt 0:05:44]} 14. Kh1 {[%emt 0:00:39]} Bd7 {[%emt 0:03:11]} 15. Re1 {[%emt 0:07:04]} Rae8 {[%emt 0:05:36]} 16. Nf4 {[%emt 0:03:31]} Qc7 {[%emt 0:10:12]} 17. Bb2 {[%emt 0:02:09]} Bd8 {[%emt 0:07:33]} 18. Rc1 {[%emt 0:11:17]} Nf7 {[%emt 0:05:03]} 19. Nce2 {[%emt 0:02:37]} Kh7 {[%emt 0:05:35]} 20. Nd4 {[%emt 0:06:03]} Rxe1+ {[%emt 0:00:21]} 21. Qxe1 {[%emt 0:00:09]} Re8 {[%emt 0:01:01]} 22. Qd2 {[%emt 0:01:19]} c5 {[%emt 0:04:38]} 23. Nde6 {[%emt 0:00:30]} Bxe6 {[%emt 0:01:13]} 24. Nxe6 {[%emt 0:01:03]} Qd7 {[%emt 0:01:08]} 25. Bh3 {[%emt 0:03:35]} g6 {[%emt 0:01:04]} 26. Qc3 {[%emt 0:05:42]} Ng5 {[%emt 0:03:04]} 27. Nxd8 {[%emt 0:03:30]} Qxd8 {[%emt 0:00:17]} 28. Bg2 {[%emt 0:01:20]} Kg7 {[%emt 0:01:25]} 29. Re1 {[%emt 0:03:22]} Rxe1+ {[%emt 0:03:32]} 30. Qxe1 {[%emt 0:00:09]} Qd7 {[%emt 0:00:39]} 31. h4 {[%emt 0:02:22]} Ngh7 {[%emt 0:00:37]} 32. Qe3 {[%emt 0:01:14]} g5 {[%emt 0:01:49]} 33. Bf1 {[%emt 0:03:36]} Kf7 {[%emt 0:01:05]} 34. Bh3 {[%emt 0:05:59]} g4 {[%emt 0:01:50]} 35. fxg4 {[%emt 0:00:20]} fxg4 {[%emt 0:00:17]} 36. Bg2 {[%emt 0:00:29]} h5 {[%emt 0:00:57]} 37. Kh2 {[%emt 0:03:49]} Qf5 {[%emt 0:00:25]} 38. a3 {[%emt 0:01:03]} Nf8 {[%emt 0:00:35]} 39. b4 {[%emt 0:01:16]} b6 {[%emt 0:00:44]} 40. Qb3 {[%emt 0:00:00]} N8d7 {[%emt 0:00:00]} 41. Bc1 {[%emt 0:08:55]} Kg6 {[%emt 0:06:00]} 42. Bf4 {[%emt 0:00:53]} Ne5 {[%emt 0:02:44]} 43. bxc5 {[%emt 0:03:42]} bxc5 {[%emt 0:00:23]} 44. Bxe5 {[%emt 0:03:11]} Qxe5 {[%emt 0:00:27]} 45. Qb8 {[%emt 0:01:51]} Qe7 {[%emt 0:02:31]} 46. a4 {[%emt 0:00:25]} Ne8 {[%emt 0:05:30]} 47. a5 Ng7 48. Qb1+ {[%emt 0:06:11]} Nf5 {[%emt 0:03:03]} 49. Be4 {[%emt 0:01:44]} Qe5 {[%emt 0:03:45]} 50. Qd3 {[%emt 0:01:42]} Kf6 {[%emt 0:01:42]} 51. Bxf5 {[%emt 0:00:22]} Qxf5 {[%emt 0:00:16]} 52. Qe3 {[%emt 0:02:10]} Qc2+ {[%emt 0:01:01]} 53. Kg1 {[%emt 0:00:35]} Qd1+ {[%emt 0:00:53]} 1/2-1/2

[Event "3rd Memorial Warakomska 2019"]
[Site "Suwalki"]
[Date "2019.08.07"]
[Round "3.48"]
[White "Iturrizaga Bonelli, Eduardo"]
[Black "Nowak, Lukasz"]
[Result "1-0"]
[ECO "A18"]
[WhiteElo "2625"]
[BlackElo "2264"]
[Annotator "RC"]
[PlyCount "81"]
[EventDate "2019.08.05"]
[EventType "swiss"]
[EventCountry "POL"]
[SourceTitle "playchess.com"]
[Source "ChessBase"]
[SourceQuality "1"]
[TimeControl "40/5400+30:1800+30"]

1. c4 {[%emt 0:05:22]} Nf6 {[%emt 0:00:00]} 2. Nc3 {[%emt 0:00:35]} e6 {[%emt 0:00:00]} 3. e4 {[%emt 0:00:58]} d5 {[%emt 0:00:05]} 4. e5 {[%emt 0:01:02]} d4 {[%emt 0:00:11]} 5. exf6 {[%emt 0:00:07]} dxc3 {[%emt 0:00:07]} 6. fxg7 {[%emt 0:00:36]} cxd2+ {[%emt 0:01:09]} 7. Bxd2 {[%emt 0:00:04]} Bxg7 {[%emt 0:00:19]} 8. Qc2 {[%emt 0:00:03]} Nc6 {[%emt 0:12:01]} 9. Nf3 {[%emt 0:00:06]} Qe7 {[%emt 0:00:33]} 10. Bc3 {[%emt 0:15:47]} Bxc3+ {[%emt 0:04:59]} 11. Qxc3 {[%emt 0:00:05]} Qb4 {[%emt 0:00:22]} 12. Kd2 {[%emt 0:01:07]} b6 {[%emt 0:15:51]} 13. Qxb4 {[%emt 0:10:12]} Nxb4 {[%emt 0:00:35]} 14. Kc3 {[%emt 0:01:37]} Nc6 {[%emt 0:00:30]} 15. Bd3 {[%emt 0:05:02]} Bb7 {[%emt 0:05:57]} 16. Be4 {[%emt 0:00:05]} O-O-O {[%emt 0:14:46]} 17. Rhe1 {[%emt 0:00:30]} Rhg8 {[%emt 0:07:42]} 18. g3 {[%emt 0:00:15]} Ne7 {[%emt 0:02:35]} 19. Ne5 {[%emt 0:03:13]} Rg7 {[%emt 0:06:49]} 20. Nd3 {[%emt 0:06:14]} Bxe4 {[%emt 0:08:21]} 21. Rxe4 {[%emt 0:00:07]} Nf5 {[%emt 0:00:19]} 22. Rae1 {[%emt 0:04:29]} Rgg8 {[%emt 0:03:26]} 23. Ne5 {[%emt 0:00:25]} Rdf8 {[%emt 0:01:23]} 24. Rf4 {[%emt 0:05:31]} Nd6 {[%emt 0:03:39]} 25. Rf6 {[%emt 0:02:53]} a5 {[%emt 0:02:39]} 26. h4 {[%emt 0:02:18]} Kd8 {[%emt 0:02:19]} 27. g4 {[%emt 0:00:14]} Ke7 {[%emt 0:00:28]} 28. g5 {[%emt 0:01:16]} Ne8 {[%emt 0:02:36]} 29. Rd1 {[%emt 0:02:32]} Nd6 {[%emt 0:00:45]} 30. f3 {[%emt 0:00:07]} Rg7 {[%emt 0:01:33]} 31. Kd3 {[%emt 0:05:33]} Rh8 {[%emt 0:00:28]} 32. Rh6 {[%emt 0:02:00]} Nf5 {[%emt 0:01:33]} 33. Ke4 {[%emt 0:01:04]} Nd6+ {[%emt 0:00:12]} 34. Kf4 {[%emt 0:00:06]} Rf8 {[%emt 0:00:11]} 35. b3 {[%emt 0:01:20]} f6 {[%emt 0:01:28]} 36. Nc6+ {[%emt 0:00:11]} Ke8 {[%emt 0:00:41]} 37. Rxf6 {[%emt 0:02:28]} Rxf6+ {[%emt 0:00:28]} 38. gxf6 {[%emt 0:00:03]} Rg6 {[%emt 0:00:52]} 39. Ke5 {[%emt 0:00:21]} Kd7 {[%emt 0:00:22]} 40. f7 {[%emt 0:00:00]} Kxc6 {[%emt 0:00:00]} 41. f8=Q {[%emt 0:00:36] Kd5+ Ke4+} 1-0

[Event "3rd Memorial Warakomska 2019"]
[Site "Suwalki"]
[Date "2019.08.07"]
[Round "4.1"]
[White "Kaczmarek, Aleksander"]
[Black "Goluch, Piotr"]
[Result "1-0"]
[ECO "B12"]
[WhiteElo "2389"]
[BlackElo "2386"]
[Annotator "ChessBase"]
[PlyCount "126"]
[EventDate "2019.08.05"]
[EventType "swiss"]
[EventCountry "POL"]
[SourceTitle "playchess.com"]
[Source "ChessBase"]
[SourceQuality "1"]
[TimeControl "40/5400+30:1800+30"]

1. e4 {[%emt 0:05:04]} c6 {[%emt 0:00:00]} 2. d4 {[%emt 0:00:08]} d5 {[%emt 0:00:00]} 3. e5 {[%emt 0:00:08]} Bf5 {[%emt 0:00:00]} 4. c4 {[%emt 0:00:07]} e6 {[%emt 0:00:00]} 5. Nc3 {[%emt 0:00:24]} Nd7 {[%emt 0:00:10]} 6. a3 {[%emt 0:00:06]} Ne7 {[%emt 0:00:03]} 7. c5 {[%emt 0:00:53]} Bg6 {[%emt 0:00:10]} 8. h4 {[%emt 0:13:30]} h5 {[%emt 0:03:19]} 9. Bd3 {[%emt 0:10:59]} Bxd3 {[%emt 0:01:51]} 10. Qxd3 {[%emt 0:01:32]} b6 {[%emt 0:00:30]} 11. b4 {[%emt 0:00:12]} a5 {[%emt 0:03:21]} 12. Rb1 {[%emt 0:00:31]} axb4 {[%emt 0:00:05]} 13. axb4 {[%emt 0:00:03]} Qc8 {[%emt 0:00:35]} 14. Nge2 {[%emt 0:05:16]} Nf5 {[%emt 0:06:26]} 15. Ng3 {[%emt 0:02:14]} Nxg3 {[%emt 0:00:46]} 16. fxg3 {[%emt 0:03:47]} bxc5 {[%emt 0:00:49]} 17. bxc5 {[%emt 0:00:35]} Qa6 {[%emt 0:03:31]} 18. Qxa6 {[%emt 0:03:28]} Rxa6 {[%emt 0:00:01]} 19. O-O {[%emt 0:00:52]} f6 {[%emt 0:07:25]} 20. exf6 {[%emt 0:01:43]} gxf6 {[%emt 0:00:13]} 21. Be3 {[%emt 0:05:43]} e5 {[%emt 0:08:14]} 22. Ra1 {[%emt 0:02:27]} Rxa1 {[%emt 0:00:06]} 23. Rxa1 {[%emt 0:00:03]} Rg8 {[%emt 0:10:07]} 24. Ra8+ {[%emt 0:07:00]} Kf7 {[%emt 0:00:08]} 25. Ra7 {[%emt 0:02:12]} exd4 {[%emt 0:13:23]} 26. Bxd4 {[%emt 0:00:46]} Ke6 {[%emt 0:06:01]} 27. Rc7 {[%emt 0:02:08]} Ne5 {[%emt 0:00:16]} 28. Ne2 {[%emt 0:04:26]} Rg4 {[%emt 0:12:01]} 29. Bf2 {[%emt 0:13:13]} d4 {[%emt 0:02:47]} 30. Nxd4+ {[%emt 0:00:26]} Kd5 {[%emt 0:00:04]} 31. Ne2 {[%emt 0:01:37]} Rc4 {[%emt 0:01:13]} 32. Rc8 {[%emt 0:07:23]} Bxc5 {[%emt 0:08:13]} 33. Bxc5 {[%emt 0:02:46]} Rxc5 {[%emt 0:00:02]} 34. Kf2 {[%emt 0:03:19]} Ke4 {[%emt 0:00:48]} 35. Ra8 {[%emt 0:00:33]} Nd3+ {[%emt 0:01:13]} 36. Kg1 {[%emt 0:01:24]} Ke3 {[%emt 0:06:18]} 37. Nf4 {[%emt 0:00:30]} Rc1+ {[%emt 0:00:58]} 38. Kh2 {[%emt 0:00:08]} Nxf4 {[%emt 0:02:05]} 39. gxf4 {[%emt 0:01:14]} Kxf4 {[%emt 0:01:50]} 40. Rh8 {[%emt 0:00:00]} Rc5 {[%emt 0:00:00]} 41. Rc8 {[%emt 0:05:17]} Ke4 {[%emt 0:01:38]} 42. Kg3 {[%emt 0:01:00]} f5 {[%emt 0:00:06]} 43. Kh2 {[%emt 0:02:01]} f4 {[%emt 0:00:06]} 44. Kh3 {[%emt 0:01:08]} Rc2 {[%emt 0:03:56]} 45. Rh8 {[%emt 0:04:24]} Rc5 {[%emt 0:00:10]} 46. Rc8 {[%emt 0:00:05]} Rc3+ {[%emt 0:01:05]} 47. Kh2 {[%emt 0:00:03]} Kf5 {[%emt 0:01:19]} 48. Rg8 {[%emt 0:01:46]} Rg3 {[%emt 0:00:27]} 49. Rc8 {[%emt 0:01:10]} Rg6 {[%emt 0:00:10]} 50. Kh3 {[%emt 0:00:13]} Re6 {[%emt 0:05:26]} 51. Rg8 {[%emt 0:00:48]} Ke4 {[%emt 0:00:10]} 52. Rc8 {[%emt 0:02:23]} Ke3 {[%emt 0:00:15]} 53. Rf8 {[%emt 0:06:26]} Re5 {[%emt 0:00:40]} 54. g4 {[%emt 0:03:02]} fxg3 {[%emt 0:00:05]} 55. Kxg3 {[%emt 0:00:04]} c5 {[%emt 0:00:02]} 56. Rc8 {[%emt 0:00:49]} Kd4 {[%emt 0:00:46]} 57. Kf3 {[%emt 0:03:16]} c4 {[%emt 0:00:41]} 58. Rd8+ {[%emt 0:03:08]} Rd5 {[%emt 0:00:36]} 59. Rc8 {[%emt 0:00:05]} Kd3 {[%emt 0:00:05]} 60. Kf2 {[%emt 0:03:25]} c3 {[%emt 0:00:11]} 61. Re8 {[%emt 0:00:20]} c2 {[%emt 0:01:04]} 62. Re3+ {[%emt 0:00:09]} Kd2 {[%emt 0:00:08]} 63. Re2+ {[%emt 0:00:03]} Kc3 {[%emt 0:00:08]} 1-0

[Event "3rd Memorial Warakomska 2019"]
[Site "Suwalki"]
[Date "2019.08.07"]
[Round "4.2"]
[White "Markowski, Tomasz"]
[Black "Janik, Igor"]
[Result "1-0"]
[ECO "A47"]
[WhiteElo "2537"]
[BlackElo "2495"]
[Annotator "ChessBase"]
[PlyCount "105"]
[EventDate "2019.08.05"]
[EventType "swiss"]
[EventCountry "POL"]
[SourceTitle "playchess.com"]
[Source "ChessBase"]
[SourceQuality "1"]
[TimeControl "40/5400+30:1800+30"]

1. d4 {[%emt 0:00:00]} Nf6 {[%emt 0:00:00]} 2. Nf3 {[%emt 0:00:00]} b6 {[%emt 0:00:07]} 3. e3 {[%emt 0:00:00]} Bb7 {[%emt 0:00:17]} 4. b3 {[%emt 0:01:09]} c5 {[%emt 0:01:10]} 5. Bb2 {[%emt 0:00:11]} cxd4 {[%emt 0:00:20]} 6. exd4 {[%emt 0:00:13]} g6 {[%emt 0:01:18]} 7. Bd3 {[%emt 0:01:17]} Bg7 {[%emt 0:00:13]} 8. O-O {[%emt 0:00:05]} O-O {[%emt 0:00:13]} 9. Re1 {[%emt 0:00:18]} d6 {[%emt 0:01:39]} 10. Nbd2 {[%emt 0:06:53]} Nc6 {[%emt 0:02:37]} 11. a3 {[%emt 0:01:15]} a5 {[%emt 0:05:06]} 12. Nf1 {[%emt 0:03:53]} a4 {[%emt 0:02:03]} 13. b4 {[%emt 0:00:47]} d5 {[%emt 0:00:24]} 14. Ng3 {[%emt 0:01:51]} Na7 {[%emt 0:11:45]} 15. Qe2 {[%emt 0:08:21]} e6 {[%emt 0:05:12]} 16. h4 {[%emt 0:18:34]} Nc8 {[%emt 0:04:13]} 17. h5 {[%emt 0:01:42]} Nd6 {[%emt 0:01:50]} 18. Ne5 {[%emt 0:01:02]} Nfe4 {[%emt 0:02:24]} 19. Bxe4 {[%emt 0:01:15]} Nxe4 {[%emt 0:01:34]} 20. Nxe4 {[%emt 0:02:16]} dxe4 {[%emt 0:00:11]} 21. hxg6 {[%emt 0:03:37]} hxg6 {[%emt 0:00:15]} 22. c4 {[%emt 0:00:57]} Rc8 {[%emt 0:03:13]} 23. Rac1 {[%emt 0:02:48]} Bxe5 {[%emt 0:12:51]} 24. dxe5 {[%emt 0:00:07]} Qd3 {[%emt 0:00:16]} 25. Qe3 {[%emt 0:06:51]} Qxe3 {[%emt 0:01:28]} 26. fxe3 {[%emt 0:00:19]} Rc6 {[%emt 0:01:09]} 27. b5 {[%emt 0:05:17]} Rc7 {[%emt 0:02:01]} 28. Bd4 {[%emt 0:00:09]} Rfc8 {[%emt 0:00:44]} 29. Bxb6 {[%emt 0:00:05]} Rxc4 {[%emt 0:00:12]} 30. Rxc4 {[%emt 0:00:08]} Rxc4 {[%emt 0:00:07]} 31. Bd4 {[%emt 0:00:19]} Kf8 {[%emt 0:03:05]} 32. Rb1 {[%emt 0:04:41]} Ke8 {[%emt 0:02:10]} 33. b6 {[%emt 0:03:52]} Kd7 {[%emt 0:02:19]} 34. Kh2 {[%emt 0:02:35]} Rc8 {[%emt 0:03:50]} 35. Kg3 {[%emt 0:02:38]} Bc6 {[%emt 0:02:17]} 36. Kg4 {[%emt 0:02:57]} Rh8 {[%emt 0:00:34]} 37. Rf1 {[%emt 0:06:33]} Rh7 {[%emt 0:01:16]} 38. Rc1 {[%emt 0:04:13]} Rh2 {[%emt 0:02:22]} 39. Kg3 {[%emt 0:00:19]} Rh5 {[%emt 0:01:47]} 40. Rc5 {[%emt 0:00:00]} Rh8 {[%emt 0:00:00]} 41. Kg4 {[%emt 0:02:58]} Rb8 {[%emt 0:03:03]} 42. Rc1 {[%emt 0:04:10]} Rh8 {[%emt 0:00:15]} 43. Rc2 {[%emt 0:00:43]} Rh2 {[%emt 0:01:34]} 44. Kg5 {[%emt 0:05:34]} Rh5+ {[%emt 0:05:30]} 45. Kf6 {[%emt 0:00:09]} Rf5+ {[%emt 0:00:02]} 46. Kg7 {[%emt 0:00:06]} g5 {[%emt 0:00:14]} 47. g4 {[%emt 0:02:44]} Rf1 {[%emt 0:02:34]} 48. Rc5 {[%emt 0:00:08]} Rg1 {[%emt 0:00:51]} 49. Ra5 {[%emt 0:00:42]} Rxg4 {[%emt 0:01:20]} 50. Ra7+ {[%emt 0:01:12]} Kd8 {[%emt 0:01:28]} 51. Bc5 {[%emt 0:03:28]} Rg1 {[%emt 0:01:11]} 52. Rc7 {[%emt 0:00:55]} Bd5 {[%emt 0:01:36]} 53. Kf8 {[%emt 0:00:32]} 1-0